[Event "Titled Tuesday Blitz May 10 Late 2022"]
[White "Martinez Alcantara, Jose Eduardo"]
[Black "Leiva, Gianmarco"]
[WhiteFideId "3805662"]
[BlackFideId "3804399"]
[WhiteElo "2690"]
[BlackElo "2323"]
[Result "1-0"]
[Round "03"]
[TimeControl "180+1"]
[Date "2022.05.10"]
[WhiteClock "0:00:39"]
[BlackClock "0:00:02"]

1. e4 {[%clk 0:03:00]}  c6 {[%clk 0:02:46]} 2. d4 {[%clk 0:03:00]}  d5 {[%clk 0:02:46]} 3. e5 {[%clk 0:03:00]}  Bf5 {[%clk 0:02:46]} 4. h4 {[%clk 0:03:01]}  h5 {[%clk 0:02:45]} 5. Bd3 {[%clk 0:03:01]}  Bxd3 {[%clk 0:02:45]} 6. Qxd3 {[%clk 0:03:02]}  Qa5+ {[%clk 0:02:45]} 7. b4 {[%clk 0:03:02]}  Qa6 {[%clk 0:02:42]} 8. e6 {[%clk 0:03:03]}  Qxd3 {[%clk 0:02:41]} 9. cxd3 {[%clk 0:03:04]}  fxe6 {[%clk 0:02:39]} 10. Nd2 {[%clk 0:03:04]}  Nh6 {[%clk 0:02:37]} 11. Ndf3 {[%clk 0:03:03]}  Nf7 {[%clk 0:02:37]} 12. Nh3 {[%clk 0:03:00]}  Nd7 {[%clk 0:02:31]} 13. Nf4 {[%clk 0:03:00]}  e5 {[%clk 0:02:13]} 14. Ng6 {[%clk 0:03:00]}  exd4 {[%clk 0:02:09]} 15. Nxh8 {[%clk 0:02:56]}  Nxh8 {[%clk 0:02:10]} 16. Nxd4 {[%clk 0:02:53]}  e5 {[%clk 0:02:10]} 17. Nc2 {[%clk 0:02:51]}  a5 {[%clk 0:02:09]} 18. bxa5 {[%clk 0:02:47]}  Rxa5 {[%clk 0:02:09]} 19. O-O {[%clk 0:02:37]}  Ng6 {[%clk 0:02:08]} 20. g3 {[%clk 0:02:37]}  Ra4 {[%clk 0:01:57]} 21. Rd1 {[%clk 0:02:29]}  Nf6 {[%clk 0:01:42]} 22. a3 {[%clk 0:02:02]}  Kd7 {[%clk 0:01:39]} 23. Rb1 {[%clk 0:02:02]}  Kc7 {[%clk 0:01:35]} 24. d4 {[%clk 0:02:02]}  e4 {[%clk 0:01:34]} 25. Rb3 {[%clk 0:01:43]}  Bd6 {[%clk 0:01:28]} 26. Bd2 {[%clk 0:01:40]}  Rc4 {[%clk 0:01:09]} 27. Ne3 {[%clk 0:01:36]}  Ra4 {[%clk 0:01:09]} 28. Rdb1 {[%clk 0:01:25]}  b5 {[%clk 0:00:58]} 29. Bb4 {[%clk 0:01:26]}  Bxb4 {[%clk 0:00:52]} 30. axb4 {[%clk 0:01:27]}  Ne7 {[%clk 0:00:51]} 31. Rc3 {[%clk 0:01:24]}  Kd6 {[%clk 0:00:45]} 32. Rb2 {[%clk 0:01:22]}  g6 {[%clk 0:00:43]} 33. Nc2 {[%clk 0:01:17]}  Nf5 {[%clk 0:00:40]} 34. Rb1 {[%clk 0:01:12]}  Ng4 {[%clk 0:00:39]} 35. Rc1 {[%clk 0:01:11]}  Ngh6 {[%clk 0:00:31]} 36. Rd1 {[%clk 0:01:00]}  Nf7 {[%clk 0:00:30]} 37. Ra3 {[%clk 0:00:57]}  Nd8 {[%clk 0:00:22]} 38. Rxa4 {[%clk 0:00:57]}  bxa4 {[%clk 0:00:23]} 39. Ra1 {[%clk 0:00:57]}  Ne6 {[%clk 0:00:23]} 40. Rxa4 {[%clk 0:00:49]}  Nexd4 {[%clk 0:00:24]} 41. Nxd4 {[%clk 0:00:49]}  Nxd4 {[%clk 0:00:24]} 42. Kf1 {[%clk 0:00:50]}  Nc2 {[%clk 0:00:16]} 43. Ke2 {[%clk 0:00:48]}  d4 {[%clk 0:00:15]} 44. Kd2 {[%clk 0:00:49]}  d3 {[%clk 0:00:15]} 45. b5 {[%clk 0:00:47]}  e3+ {[%clk 0:00:03]} 46. fxe3 {[%clk 0:00:46]}  cxb5 {[%clk 0:00:04]} 47. Ra6+ {[%clk 0:00:42]}  Ke5 {[%clk 0:00:03]} 48. Rb6 {[%clk 0:00:40]}  Nb4 {[%clk 0:00:03]} 49. Rxb5+ {[%clk 0:00:40]}  Nd5 {[%clk 0:00:04]} 50. Kxd3 {[%clk 0:00:40]}  Kd6 {[%clk 0:00:05]} 51. Kd4 {[%clk 0:00:40]}  Ne7 {[%clk 0:00:03]} 52. Rb6+ {[%clk 0:00:41]}  Kd7 {[%clk 0:00:04]} 53. Ke5 {[%clk 0:00:40]}  Nf5 {[%clk 0:00:02]} 54. Rxg6 {[%clk 0:00:37]}  Nxe3 {[%clk 0:00:03]} 55. Rg5 {[%clk 0:00:38]}  Ke7 {[%clk 0:00:02]} 56. Ke4 {[%clk 0:00:39]}  Nf1 {[%clk 0:00:02]} 57. Kf4 {[%clk 0:00:38]}  Kf7 {[%clk 0:00:02]} 58. Rxh5 {[%clk 0:00:39]}  Nd2 {[%clk 0:00:02]} 59. Rc5 {[%clk 0:00:38]}  Nb3 {[%clk 0:00:03]} 60. Rd5 {[%clk 0:00:39]}  Nc1 {[%clk 0:00:02]} 61. Ke3 {[%clk 0:00:39]}  Nb3 {[%clk 0:00:03]} 62. Rb5 {[%clk 0:00:39]}  Nc1 {[%clk 0:00:02]} 63. Rb2 {[%clk 0:00:39]} 1-0


[Site "https://www.chess.com"]

[Event "Titled Tuesday Blitz May 10 Late 2022"]
[White "Martinez Reyes, Pedro Ramon"]
[Black "Aksu, Vedat Ali"]
[WhiteFideId "3901807"]
[BlackFideId "6304320"]
[WhiteElo "2410"]
[BlackElo "2192"]
[Result "1-0"]
[Round "03"]
[TimeControl "180+1"]
[Date "2022.05.11"]
[WhiteClock "0:01:07"]
[BlackClock "0:00:35"]

1. b4 {[%clk 0:03:00]}  b6 {[%clk 0:02:59]} 2. Bb2 {[%clk 0:02:18]}  Bb7 {[%clk 0:03:00]} 3. Nf3 {[%clk 0:02:18]}  Nf6 {[%clk 0:02:59]} 4. g3 {[%clk 0:02:17]}  e6 {[%clk 0:02:59]} 5. a3 {[%clk 0:02:16]}  c5 {[%clk 0:02:58]} 6. Bg2 {[%clk 0:02:14]}  Qc7 {[%clk 0:02:58]} 7. O-O {[%clk 0:02:13]}  h5 {[%clk 0:02:56]} 8. h4 {[%clk 0:02:10]}  Nc6 {[%clk 0:02:54]} 9. e3 {[%clk 0:02:04]}  Bd6 {[%clk 0:02:36]} 10. Nc3 {[%clk 0:02:02]}  a6 {[%clk 0:02:36]} 11. Qe2 {[%clk 0:01:58]}  Ng4 {[%clk 0:02:36]} 12. Ne4 {[%clk 0:01:54]}  cxb4 {[%clk 0:02:24]} 13. Nxd6+ {[%clk 0:01:53]}  Qxd6 {[%clk 0:02:24]} 14. axb4 {[%clk 0:01:54]}  O-O {[%clk 0:02:10]} 15. b5 {[%clk 0:01:52]}  axb5 {[%clk 0:02:08]} 16. Qxb5 {[%clk 0:01:53]}  Qc7 {[%clk 0:02:07]} 17. Qxh5 {[%clk 0:01:44]}  Nf6 {[%clk 0:01:31]} 18. Qg5 {[%clk 0:01:44]}  Ne8 {[%clk 0:01:18]} 19. Rxa8 {[%clk 0:01:42]}  Bxa8 {[%clk 0:01:18]} 20. Ra1 {[%clk 0:01:43]}  Bb7 {[%clk 0:01:12]} 21. h5 {[%clk 0:01:42]}  f6 {[%clk 0:01:12]} 22. Qg6 {[%clk 0:01:40]}  Ne7 {[%clk 0:01:08]} 23. Qg4 {[%clk 0:01:39]}  Kf7 {[%clk 0:01:04]} 24. Bc3 {[%clk 0:01:32]}  Rh8 {[%clk 0:01:03]} 25. Ra7 {[%clk 0:01:30]}  Kf8 {[%clk 0:00:54]} 26. Nh4 {[%clk 0:01:26]}  Nd6 {[%clk 0:00:47]} 27. Bb4 {[%clk 0:01:21]}  Qb8 {[%clk 0:00:40]} 28. Bxd6 {[%clk 0:01:18]}  Qxa7 {[%clk 0:00:41]} 29. Ng6+ {[%clk 0:01:13]}  Ke8 {[%clk 0:00:35]} 30. Nxh8 {[%clk 0:01:12]}  Bxg2 {[%clk 0:00:35]} 31. Qxg7 {[%clk 0:01:07]} 1-0


[Site "https://www.chess.com"]

[Event "Titled Tuesday Blitz May 10 Late 2022"]
[White "Melikhov, Evgeny V."]
[Black "Marin Ramirez, Gerardo"]
[WhiteFideId "4122046"]
[BlackFideId "3901068"]
[WhiteElo "1931"]
[BlackElo "1920"]
[Result "0-1"]
[Round "03"]
[TimeControl "180+1"]
[Date "2022.05.11"]
[WhiteClock "0:00:14"]
[BlackClock "0:00:04"]

1. d4 {[%clk 0:03:00]}  d5 {[%clk 0:02:57]} 2. c4 {[%clk 0:03:00]}  c6 {[%clk 0:02:57]} 3. Nc3 {[%clk 0:03:00]}  Nf6 {[%clk 0:02:56]} 4. e3 {[%clk 0:03:01]}  e6 {[%clk 0:02:54]} 5. Nf3 {[%clk 0:03:01]}  Nbd7 {[%clk 0:02:53]} 6. Bd3 {[%clk 0:03:01]}  dxc4 {[%clk 0:02:52]} 7. Bxc4 {[%clk 0:03:01]}  b5 {[%clk 0:02:52]} 8. Bd3 {[%clk 0:03:01]}  a6 {[%clk 0:02:52]} 9. e4 {[%clk 0:03:01]}  Bb7 {[%clk 0:02:49]} 10. O-O {[%clk 0:03:00]}  c5 {[%clk 0:02:48]} 11. d5 {[%clk 0:03:00]}  c4 {[%clk 0:02:47]} 12. dxe6 {[%clk 0:03:00]}  fxe6 {[%clk 0:02:33]} 13. Bc2 {[%clk 0:03:00]}  Nc5 {[%clk 0:02:26]} 14. Qe2 {[%clk 0:02:35]}  Qc7 {[%clk 0:02:23]} 15. e5 {[%clk 0:02:25]}  Nd5 {[%clk 0:02:08]} 16. Ng5 {[%clk 0:02:13]}  O-O-O {[%clk 0:01:37]} 17. a4 {[%clk 0:02:10]}  b4 {[%clk 0:01:27]} 18. Nxd5 {[%clk 0:02:03]}  Bxd5 {[%clk 0:01:21]} 19. a5 {[%clk 0:01:56]}  h6 {[%clk 0:01:08]} 20. Nf3 {[%clk 0:01:51]}  Be7 {[%clk 0:01:00]} 21. Be3 {[%clk 0:01:38]}  Kb7 {[%clk 0:00:52]} 22. Rfd1 {[%clk 0:01:23]}  Rhf8 {[%clk 0:00:50]} 23. Bxc5 {[%clk 0:01:13]}  Bxc5 {[%clk 0:00:45]} 24. Be4 {[%clk 0:01:12]}  g5 {[%clk 0:00:38]} 25. h3 {[%clk 0:01:03]}  h5 {[%clk 0:00:33]} 26. Bxd5+ {[%clk 0:00:41]}  exd5 {[%clk 0:00:32]} 27. e6 {[%clk 0:00:41]}  g4 {[%clk 0:00:25]} 28. hxg4 {[%clk 0:00:40]}  hxg4 {[%clk 0:00:24]} 29. e7 {[%clk 0:00:41]}  Qxe7 {[%clk 0:00:22]} 30. Qxe7+ {[%clk 0:00:39]}  Bxe7 {[%clk 0:00:22]} 31. Ne5 {[%clk 0:00:39]}  g3 {[%clk 0:00:19]} 32. f3 {[%clk 0:00:29]}  Bc5+ {[%clk 0:00:17]} 33. Kf1 {[%clk 0:00:29]}  Rh8 {[%clk 0:00:14]} 34. Nf7 {[%clk 0:00:27]}  Rh1+ {[%clk 0:00:11]} 35. Ke2 {[%clk 0:00:27]}  Re8+ {[%clk 0:00:11]} 36. Kd2 {[%clk 0:00:27]}  Rh2 {[%clk 0:00:09]} 37. Rg1 {[%clk 0:00:14]}  Bxg1 {[%clk 0:00:07]} 38. Nd6+ {[%clk 0:00:13]}  Kc6 {[%clk 0:00:06]} 39. Nxe8 {[%clk 0:00:13]}  Rxg2+ {[%clk 0:00:06]} 40. Ke1 {[%clk 0:00:12]}  Bd4 {[%clk 0:00:06]} 41. Rd1 {[%clk 0:00:10]}  Rg1+ {[%clk 0:00:04]} 42. Ke2 {[%clk 0:00:10]}  Rxd1 {[%clk 0:00:01]} 43. Kxd1 {[%clk 0:00:10]}  g2 {[%clk 0:00:01]} 44. Ke2 {[%clk 0:00:11]}  g1=Q {[%clk 0:00:02]} 45. f4 {[%clk 0:00:12]}  Qe3+ {[%clk 0:00:02]} 46. Kd1 {[%clk 0:00:13]}  Qxe8 {[%clk 0:00:02]} 47. Kc2 {[%clk 0:00:13]}  Qf7 {[%clk 0:00:03]} 48. Kb1 {[%clk 0:00:13]}  Qxf4 {[%clk 0:00:04]} 49. Ka2 {[%clk 0:00:14]}  Qd2 {[%clk 0:00:04]} 0-1


[Site "https://www.chess.com"]

[Event "Titled Tuesday Blitz May 10 Late 2022"]
[White "Melikyan, Gnel"]
[Black "Bouget, Alexandre"]
[WhiteFideId "54109990"]
[BlackFideId "681318"]
[WhiteElo "1772"]
[BlackElo "2182"]
[Result "1-0"]
[Round "03"]
[TimeControl "180+1"]
[Date "2022.05.11"]
[WhiteClock "0:00:15"]
[BlackClock "0:00:09"]

1. Nf3 {[%clk 0:02:59]}  Nc6 {[%clk 0:02:56]} 2. e4 {[%clk 0:02:57]}  e5 {[%clk 0:02:55]} 3. Bb5 {[%clk 0:02:51]}  a6 {[%clk 0:02:55]} 4. Bxc6 {[%clk 0:02:51]}  dxc6 {[%clk 0:02:55]} 5. O-O {[%clk 0:02:52]}  f6 {[%clk 0:02:53]} 6. d4 {[%clk 0:02:52]}  Bg4 {[%clk 0:02:53]} 7. dxe5 {[%clk 0:02:48]}  Qxd1 {[%clk 0:02:54]} 8. Rxd1 {[%clk 0:02:48]}  fxe5 {[%clk 0:02:55]} 9. Be3 {[%clk 0:02:43]}  Ne7 {[%clk 0:02:51]} 10. Nbd2 {[%clk 0:02:41]}  Ng6 {[%clk 0:02:43]} 11. h3 {[%clk 0:02:39]}  Be6 {[%clk 0:02:42]} 12. Ng5 {[%clk 0:02:33]}  Bg8 {[%clk 0:02:41]} 13. Nb3 {[%clk 0:02:28]}  h6 {[%clk 0:02:39]} 14. Nf3 {[%clk 0:02:24]}  b6 {[%clk 0:02:39]} 15. Bd2 {[%clk 0:02:04]}  O-O-O {[%clk 0:02:35]} 16. Bc3 {[%clk 0:02:01]}  Bd6 {[%clk 0:02:34]} 17. Nbd2 {[%clk 0:01:55]}  Be6 {[%clk 0:02:33]} 18. Nf1 {[%clk 0:01:48]}  Rhf8 {[%clk 0:02:32]} 19. Kh2 {[%clk 0:01:47]}  Rxf3 {[%clk 0:02:08]} 20. gxf3 {[%clk 0:01:45]}  Rf8 {[%clk 0:02:08]} 21. Rd3 {[%clk 0:01:29]}  Nf4 {[%clk 0:02:06]} 22. Kg3 {[%clk 0:01:09]}  Nxh3 {[%clk 0:02:00]} 23. Rad1 {[%clk 0:01:06]}  Nf4 {[%clk 0:01:52]} 24. Rxd6 {[%clk 0:01:03]}  cxd6 {[%clk 0:01:53]} 25. Rxd6 {[%clk 0:01:03]}  Ne2+ {[%clk 0:01:37]} 26. Kg2 {[%clk 0:00:58]}  Nxc3 {[%clk 0:01:32]} 27. Rxe6 {[%clk 0:00:53]}  Ne2 {[%clk 0:01:26]} 28. Rxc6+ {[%clk 0:00:33]}  Kb7 {[%clk 0:01:26]} 29. Rd6 {[%clk 0:00:31]}  Kc7 {[%clk 0:01:24]} 30. Rd2 {[%clk 0:00:21]}  Nd4 {[%clk 0:01:23]} 31. Nh2 {[%clk 0:00:20]}  h5 {[%clk 0:01:21]} 32. c3 {[%clk 0:00:20]}  Ne6 {[%clk 0:01:20]} 33. Kg3 {[%clk 0:00:19]}  g5 {[%clk 0:01:19]} 34. Rd5 {[%clk 0:00:19]}  h4+ {[%clk 0:01:13]} 35. Kg4 {[%clk 0:00:20]}  Rf4+ {[%clk 0:01:02]} 36. Kh3 {[%clk 0:00:20]}  g4+ {[%clk 0:00:54]} 37. Nxg4 {[%clk 0:00:20]}  Rxf3+ {[%clk 0:00:46]} 38. Kxh4 {[%clk 0:00:21]}  Nf4 {[%clk 0:00:32]} 39. Rxe5 {[%clk 0:00:20]}  Nd3 {[%clk 0:00:32]} 40. Rf5 {[%clk 0:00:20]}  Rxf5 {[%clk 0:00:23]} 41. exf5 {[%clk 0:00:21]}  Kd7 {[%clk 0:00:21]} 42. Kg5 {[%clk 0:00:20]}  Ke8 {[%clk 0:00:20]} 43. f6 {[%clk 0:00:18]}  Nxb2 {[%clk 0:00:18]} 44. Kg6 {[%clk 0:00:17]}  Kf8 {[%clk 0:00:15]} 45. Ne5 {[%clk 0:00:17]}  Na4 {[%clk 0:00:10]} 46. Nd7+ {[%clk 0:00:15]}  Ke8 {[%clk 0:00:10]} 47. f7+ {[%clk 0:00:15]}  Kxd7 {[%clk 0:00:10]} 48. f8=Q {[%clk 0:00:16]}  Nxc3 {[%clk 0:00:09]} 49. Qg7+ {[%clk 0:00:15]} 1-0


[Site "https://www.chess.com"]

[Event "Titled Tuesday Blitz May 10 Late 2022"]
[White "Moral Garcia, Serafin"]
[Black "Stanisz, Patryk"]
[WhiteFideId "2201925"]
[BlackFideId "1123106"]
[WhiteElo "2228"]
[BlackElo "1833"]
[Result "0-1"]
[Round "03"]
[TimeControl "180+1"]
[Date "2022.05.11"]
[WhiteClock "0:01:15"]
[BlackClock "0:00:22"]

1. e4 {[%clk 0:03:00]}  c5 {[%clk 0:02:59]} 2. Nf3 {[%clk 0:02:57]}  Nc6 {[%clk 0:02:59]} 3. Bb5 {[%clk 0:02:56]}  g6 {[%clk 0:02:59]} 4. O-O {[%clk 0:02:56]}  Bg7 {[%clk 0:02:59]} 5. Re1 {[%clk 0:02:57]}  Nf6 {[%clk 0:02:58]} 6. e5 {[%clk 0:02:57]}  Nd5 {[%clk 0:02:57]} 7. Nc3 {[%clk 0:02:57]}  Nxc3 {[%clk 0:02:56]} 8. dxc3 {[%clk 0:02:57]}  O-O {[%clk 0:02:57]} 9. Bg5 {[%clk 0:02:57]}  Re8 {[%clk 0:02:56]} 10. Qd5 {[%clk 0:02:56]}  Qc7 {[%clk 0:02:44]} 11. Rad1 {[%clk 0:02:54]}  b6 {[%clk 0:02:38]} 12. Bf4 {[%clk 0:02:45]}  e6 {[%clk 0:02:37]} 13. Qe4 {[%clk 0:02:45]}  Bb7 {[%clk 0:02:35]} 14. Qe3 {[%clk 0:02:45]}  a6 {[%clk 0:02:32]} 15. Bf1 {[%clk 0:02:44]}  Ne7 {[%clk 0:02:22]} 16. g4 {[%clk 0:02:40]}  Nd5 {[%clk 0:02:18]} 17. Qd2 {[%clk 0:02:41]}  Nxf4 {[%clk 0:01:53]} 18. Qxf4 {[%clk 0:02:40]}  Bxf3 {[%clk 0:01:52]} 19. Qxf3 {[%clk 0:02:41]}  Bxe5 {[%clk 0:01:53]} 20. h4 {[%clk 0:02:34]}  d5 {[%clk 0:01:34]} 21. g5 {[%clk 0:02:33]}  Bg7 {[%clk 0:01:32]} 22. Qg4 {[%clk 0:02:32]}  b5 {[%clk 0:01:21]} 23. Bd3 {[%clk 0:02:25]}  c4 {[%clk 0:01:20]} 24. Bf1 {[%clk 0:02:19]}  a5 {[%clk 0:01:20]} 25. Re3 {[%clk 0:02:13]}  b4 {[%clk 0:01:18]} 26. Rh3 {[%clk 0:02:13]}  bxc3 {[%clk 0:01:14]} 27. bxc3 {[%clk 0:02:12]}  Qe5 {[%clk 0:01:02]} 28. h5 {[%clk 0:02:03]}  Qf5 {[%clk 0:01:00]} 29. Qxf5 {[%clk 0:02:00]}  gxf5 {[%clk 0:00:59]} 30. Rg3 {[%clk 0:01:38]}  Rab8 {[%clk 0:00:54]} 31. g6 {[%clk 0:01:33]}  fxg6 {[%clk 0:00:49]} 32. hxg6 {[%clk 0:01:34]}  hxg6 {[%clk 0:00:49]} 33. Rxg6 {[%clk 0:01:34]}  Kf7 {[%clk 0:00:50]} 34. Rg3 {[%clk 0:01:34]}  Rb2 {[%clk 0:00:49]} 35. Be2 {[%clk 0:01:34]}  Rg8 {[%clk 0:00:33]} 36. Bh5+ {[%clk 0:01:32]}  Kf8 {[%clk 0:00:31]} 37. Re1 {[%clk 0:01:32]}  e5 {[%clk 0:00:27]} 38. Rg5 {[%clk 0:01:24]}  Bf6 {[%clk 0:00:25]} 39. Rxg8+ {[%clk 0:01:22]}  Kxg8 {[%clk 0:00:26]} 40. Rd1 {[%clk 0:01:21]}  d4 {[%clk 0:00:24]} 41. Be2 {[%clk 0:01:19]}  d3 {[%clk 0:00:22]} 42. Bf1 {[%clk 0:01:15]}  Rxc2 {[%clk 0:00:22]} 0-1


[Site "https://www.chess.com"]

[Event "Titled Tuesday Blitz May 10 Late 2022"]
[White "Moussard, Jules"]
[Black "Sanchez, Robert"]
[WhiteFideId "642908"]
[BlackFideId "2034360"]
[WhiteElo "2589"]
[BlackElo "2220"]
[Result "1-0"]
[Round "03"]
[TimeControl "180+1"]
[Date "2022.05.10"]
[WhiteClock "0:01:37"]
[BlackClock "0:00:18"]

1. b3 {[%clk 0:02:58]}  d5 {[%clk 0:02:59]} 2. Bb2 {[%clk 0:02:59]}  c5 {[%clk 0:02:58]} 3. Nf3 {[%clk 0:02:59]}  Nc6 {[%clk 0:02:58]} 4. e3 {[%clk 0:02:59]}  a6 {[%clk 0:02:58]} 5. d4 {[%clk 0:02:58]}  e6 {[%clk 0:02:56]} 6. Nbd2 {[%clk 0:02:58]}  Nf6 {[%clk 0:02:57]} 7. g3 {[%clk 0:02:57]}  Bd6 {[%clk 0:02:57]} 8. Bg2 {[%clk 0:02:57]}  O-O {[%clk 0:02:57]} 9. O-O {[%clk 0:02:57]}  cxd4 {[%clk 0:02:57]} 10. exd4 {[%clk 0:02:58]}  Bd7 {[%clk 0:02:57]} 11. a3 {[%clk 0:02:58]}  Rc8 {[%clk 0:02:57]} 12. Re1 {[%clk 0:02:58]}  h6 {[%clk 0:02:50]} 13. c4 {[%clk 0:02:58]}  Re8 {[%clk 0:02:49]} 14. c5 {[%clk 0:02:58]}  Bf8 {[%clk 0:02:49]} 15. b4 {[%clk 0:02:59]}  g6 {[%clk 0:02:44]} 16. Ne5 {[%clk 0:02:59]}  Bg7 {[%clk 0:02:42]} 17. Qb3 {[%clk 0:02:57]}  Rb8 {[%clk 0:02:38]} 18. Rac1 {[%clk 0:02:54]}  Bc8 {[%clk 0:02:38]} 19. a4 {[%clk 0:02:50]}  Nd7 {[%clk 0:02:37]} 20. b5 {[%clk 0:02:48]}  Ncxe5 {[%clk 0:02:28]} 21. dxe5 {[%clk 0:02:48]}  axb5 {[%clk 0:02:27]} 22. axb5 {[%clk 0:02:49]}  Bf8 {[%clk 0:02:12]} 23. Bd4 {[%clk 0:02:48]}  Qa5 {[%clk 0:02:10]} 24. Rc3 {[%clk 0:02:45]}  Nxc5 {[%clk 0:02:00]} 25. Bxc5 {[%clk 0:02:26]}  Bxc5 {[%clk 0:01:59]} 26. Rxc5 {[%clk 0:02:27]}  Qxd2 {[%clk 0:01:59]} 27. Rec1 {[%clk 0:02:28]}  Qd4 {[%clk 0:01:46]} 28. Qc3 {[%clk 0:02:17]}  Qxc3 {[%clk 0:01:44]} 29. R1xc3 {[%clk 0:02:18]}  Bd7 {[%clk 0:01:42]} 30. Bf1 {[%clk 0:02:18]}  Rec8 {[%clk 0:01:40]} 31. Rc7 {[%clk 0:02:18]}  Kf8 {[%clk 0:01:35]} 32. b6 {[%clk 0:02:18]}  Bc6 {[%clk 0:01:35]} 33. Ba6 {[%clk 0:01:53]}  Rxc7 {[%clk 0:01:16]} 34. bxc7 {[%clk 0:01:53]}  Ra8 {[%clk 0:00:39]} 35. Rxc6 {[%clk 0:01:53]}  bxc6 {[%clk 0:00:38]} 36. Bb7 {[%clk 0:01:48]}  Re8 {[%clk 0:00:34]} 37. f4 {[%clk 0:01:47]}  c5 {[%clk 0:00:33]} 38. Kf2 {[%clk 0:01:45]}  Ke7 {[%clk 0:00:33]} 39. c8=Q {[%clk 0:01:44]}  Rxc8 {[%clk 0:00:33]} 40. Bxc8 {[%clk 0:01:45]}  Kd8 {[%clk 0:00:33]} 41. Ba6 {[%clk 0:01:45]}  Ke7 {[%clk 0:00:31]} 42. Ke3 {[%clk 0:01:44]}  f6 {[%clk 0:00:32]} 43. h4 {[%clk 0:01:44]}  g5 {[%clk 0:00:31]} 44. h5 {[%clk 0:01:40]}  gxf4+ {[%clk 0:00:27]} 45. gxf4 {[%clk 0:01:41]}  fxe5 {[%clk 0:00:27]} 46. fxe5 {[%clk 0:01:42]}  Kd7 {[%clk 0:00:24]} 47. Bb5+ {[%clk 0:01:39]}  Kc7 {[%clk 0:00:19]} 48. Kd3 {[%clk 0:01:38]}  Kb6 {[%clk 0:00:19]} 49. Bd7 {[%clk 0:01:38]}  c4+ {[%clk 0:00:18]} 50. Kd4 {[%clk 0:01:37]} 1-0


[Site "https://www.chess.com"]

[Event "Titled Tuesday Blitz May 10 Late 2022"]
[White "Naguleswaran, Annorjan"]
[Black "Lewicki, Miroslaw"]
[WhiteFideId "2093197"]
[BlackFideId "1113380"]
[WhiteElo "1854"]
[BlackElo "2283"]
[Result "0-1"]
[Round "03"]
[TimeControl "180+1"]
[Date "2022.05.11"]
[WhiteClock "0:00:25"]
[BlackClock "0:02:09"]

1. e4 {[%clk 0:03:00]}  c5 {[%clk 0:02:57]} 2. Nf3 {[%clk 0:03:00]}  d6 {[%clk 0:02:49]} 3. c3 {[%clk 0:02:59]}  Nf6 {[%clk 0:02:48]} 4. Bd3 {[%clk 0:02:59]}  g6 {[%clk 0:02:46]} 5. h3 {[%clk 0:02:57]}  Bg7 {[%clk 0:02:46]} 6. Bc2 {[%clk 0:02:55]}  O-O {[%clk 0:02:45]} 7. d4 {[%clk 0:02:55]}  cxd4 {[%clk 0:02:45]} 8. cxd4 {[%clk 0:02:55]}  Nc6 {[%clk 0:02:46]} 9. Nc3 {[%clk 0:02:55]}  a6 {[%clk 0:02:43]} 10. O-O {[%clk 0:02:54]}  b5 {[%clk 0:02:43]} 11. Qe2 {[%clk 0:02:42]}  Bb7 {[%clk 0:02:40]} 12. Rd1 {[%clk 0:02:38]}  Rb8 {[%clk 0:02:38]} 13. Bg5 {[%clk 0:02:06]}  h6 {[%clk 0:02:30]} 14. Bh4 {[%clk 0:02:01]}  g5 {[%clk 0:02:29]} 15. Bg3 {[%clk 0:02:01]}  Nh5 {[%clk 0:02:25]} 16. Bh2 {[%clk 0:01:54]}  Nf4 {[%clk 0:02:25]} 17. Qe3 {[%clk 0:00:51]}  b4 {[%clk 0:02:11]} 18. Nd5 {[%clk 0:00:29]}  Ng6 {[%clk 0:02:10]} 19. Rac1 {[%clk 0:00:25]}  e6 {[%clk 0:02:09]} 0-1


[Site "https://www.chess.com"]

[Event "Titled Tuesday Blitz May 10 Late 2022"]
[White "Nazaretyan, Tigran"]
[Black "Qashashvili, Alexandre"]
[WhiteFideId "24162345"]
[BlackFideId "13600842"]
[WhiteElo "2225"]
[BlackElo "2316"]
[Result "1-0"]
[Round "03"]
[TimeControl "180+1"]
[Date "2022.05.11"]
[WhiteClock "0:00:27"]
[BlackClock "0:00:25"]

1. d4 {[%clk 0:02:51]}  c6 {[%clk 0:03:00]} 2. c4 {[%clk 0:02:50]}  d5 {[%clk 0:03:01]} 3. Nf3 {[%clk 0:02:48]}  Nf6 {[%clk 0:03:01]} 4. Nc3 {[%clk 0:02:48]}  Bf5 {[%clk 0:03:00]} 5. cxd5 {[%clk 0:02:46]}  Nxd5 {[%clk 0:03:00]} 6. Nd2 {[%clk 0:02:46]}  Nxc3 {[%clk 0:02:59]} 7. bxc3 {[%clk 0:02:46]}  e6 {[%clk 0:03:00]} 8. e4 {[%clk 0:02:45]}  Bg6 {[%clk 0:03:00]} 9. Be2 {[%clk 0:02:42]}  h6 {[%clk 0:03:00]} 10. O-O {[%clk 0:02:39]}  Nd7 {[%clk 0:02:59]} 11. a4 {[%clk 0:02:38]}  b6 {[%clk 0:02:58]} 12. a5 {[%clk 0:02:37]}  Be7 {[%clk 0:02:57]} 13. Qa4 {[%clk 0:02:34]}  Qc7 {[%clk 0:02:55]} 14. Ba3 {[%clk 0:02:26]}  b5 {[%clk 0:02:50]} 15. Qb3 {[%clk 0:02:23]}  Bxa3 {[%clk 0:02:50]} 16. Qxa3 {[%clk 0:02:23]}  a6 {[%clk 0:02:49]} 17. c4 {[%clk 0:02:18]}  Nf6 {[%clk 0:02:38]} 18. e5 {[%clk 0:02:14]}  Ne4 {[%clk 0:02:38]} 19. Nf3 {[%clk 0:02:03]}  Qe7 {[%clk 0:02:35]} 20. Qe3 {[%clk 0:01:54]}  O-O {[%clk 0:02:30]} 21. h4 {[%clk 0:01:47]}  Rad8 {[%clk 0:02:11]} 22. Bd3 {[%clk 0:01:42]}  c5 {[%clk 0:01:05]} 23. Bxe4 {[%clk 0:01:26]}  cxd4 {[%clk 0:01:05]} 24. Nxd4 {[%clk 0:01:13]}  Qxh4 {[%clk 0:01:02]} 25. Bxg6 {[%clk 0:00:50]}  Qxd4 {[%clk 0:01:02]} 26. Qxd4 {[%clk 0:00:46]}  Rxd4 {[%clk 0:01:03]} 27. Bh5 {[%clk 0:00:38]}  Rxc4 {[%clk 0:01:01]} 28. Rfc1 {[%clk 0:00:36]}  Rfc8 {[%clk 0:01:00]} 29. Rxc4 {[%clk 0:00:36]}  Rxc4 {[%clk 0:01:01]} 30. Bf3 {[%clk 0:00:36]}  Rc5 {[%clk 0:00:50]} 31. Bb7 {[%clk 0:00:35]}  Rxe5 {[%clk 0:00:45]} 32. Bxa6 {[%clk 0:00:35]}  b4 {[%clk 0:00:40]} 33. Bc4 {[%clk 0:00:29]}  Rc5 {[%clk 0:00:37]} 34. a6 {[%clk 0:00:29]}  Rxc4 {[%clk 0:00:34]} 35. a7 {[%clk 0:00:29]}  Rc8 {[%clk 0:00:24]} 36. a8=Q {[%clk 0:00:27]}  Rxa8 {[%clk 0:00:25]} 37. Rxa8+ {[%clk 0:00:27]} 1-0


[Site "https://www.chess.com"]